[Event "FIDE WSTC Open 50 2025"]
[Site "Prague"]
[Date "2025.02.20"]
[Round "4.4"]
[White "Emms, John M"]
[Black "D'Amore, Carlo"]
[Result "0-1"]
[Annotator "TA"]
[ECO "C50"]
[WhiteElo "2409"]
[BlackElo "2362"]
[PlyCount "116"]
[EventDate "2025.02.17"]
[EventType "team-tourn"]
[EventCountry "CZE"]
[SourceTitle "playchess.com"]
[Source "ChessBase"]
[SourceQuality "1"]
[TimeControl "40/5400+30:1800+30"]

{[%evp 10,116,14,16,12,14,24,20,33,30,34,41,25,34,43,43,58,50,53,58,44,18,30,0,0,-62,-35,-47,-68,-100,-95,-100,-93,-126,-127,-118,-99,-109,-126,-108,-92,-98,-81,-107,-106,-141,-132,-131,-131,-137,-134,-141,-138,-131,-140,-231,-227,-233,-233,-224,-222,-212,-206,-200,-194,-237,-227,-217,-214,-229,-34,-70,-8,-68,-68,-166,-167,-187,-180,-241,-240,-211,-233,-233,-246,-242,-231,-380,-364,-1439,-1325,-1323,-587,-5047,-5017,-4383,-4130,-3549,-2743,-29968,-29969,-29970,-29966,-29964,-29966,-29967,-29966,-12393,-4634]} 1. e4 {[%emt 0:00:16]} e5 {[%emt 0:00:51]} 2. Nf3 {[%emt 0:00:13]} Nc6 {[%emt 0:00:08]} 3. Bc4 {[%emt 0:00:23]} Bc5 {[%emt 0:00:23]} 4. O-O {[%emt 0:02:26]} Nf6 {[%emt 0:01:53]} 5. d3 {[%emt 0:00:15]} d6 {[%emt 0:01:48]} 6. c3 {[%emt 0:00:25]} a5 {[%emt 0:02:23] C54: Giuoco Piano: 4 c3 Nf6, main lines with 5 d4 and 5 d3.} 7. Re1 {[%emt 0:11:40]} Ba7 {[%emt 0:02:04]} 8. Nbd2 {[%emt 0:13:38][%cal Bb1d2,Bd2f1,Bf1g3,Bg3f5][%mdl 32]} Ne7 {[%emt 0:12:05] The position is equal.} 9. h3 {[%emt 0:12:56]} Ng6 {[%emt 0:01:13]} 10. Nf1 {[%emt 0:07:42]} O-O {[%emt 0:01:18]} 11. Ng3 {[%emt 0:01:20]} h6 {[%emt 0:10:00][%cal Oa5a4]} 12. Bb3 {[%emt 0:00:51]} Nh7 $146 {[%emt 0:07:14]} ({Predecessor:} 12... Be6 13. Bc2 c5 14. d4 cxd4 15. cxd4 Qb6 16. Be3 Qxb2 17. Bb3 Bxb3 18. axb3 Qc3 {1-0 Caruana,F (2782)-Robson,R (2689) FIDE World Cup 2023 (4.2)}) 13. d4 {[%emt 0:03:35]} Qf6 {[%emt 0:00:17]} 14. Be3 {[%emt 0:11:32]} Ng5 {[%emt 0:01:07]} 15. Nxg5 {[%emt 0:09:14]} hxg5 {[%emt 0:00:06]} 16. Nf5 {[%emt 0:01:29]} Nf4 {[%emt 0:08:46]} 17. Kh2 {[%emt 0:07:04]} (17. Ng3 $11) 17... g6 {[%emt 0:03:52]} 18. Nh6+ {[%emt 0:03:54]} Kg7 {[%emt 0:00:15]} 19. Ng4 {[%emt 0:00:17]} Bxg4 {[%emt 0:00:18]} 20. Qxg4 {[%emt 0:00:17]} a4 $1 {[%emt 0:07:38]} 21. Bc4 {[%emt 0:01:22]} exd4 {[%emt 0:03:38]} 22. cxd4 {[%emt 0:00:09]} Bxd4 {[%emt 0:00:43]} 23. Bxd4 {[%emt 0:04:09]} Qxd4 {[%emt 0:00:05]} 24. Qxg5 {[%emt 0:00:16]} Nxh3 {[%emt 0:10:43]} (24... Qxf2 $2 25. Rf1 Nxh3 (25... Qxb2 $2 26. Qxf4 Ra5 27. Rab1 $18) 26. Qe7 (26. Qc1 Qd4 $14) 26... Qxb2 27. Rab1 (27. Kxh3 $2 Qc3+ 28. g3 Qxc4 $19) (27. Rxf7+ Rxf7 28. Qxf7+ Kh6 $11) 27... Qe5+ 28. Qxe5+ (28. Kxh3 $2 Qxe7 29. Rbe1 Rh8+ 30. Kg3 Qe5+ 31. Kg4 f5+ 32. exf5 gxf5+ 33. Kf3 Qc3+ 34. Kf2 Qd4+ 35. Kf3 Qxc4 $19) 28... dxe5 29. Kxh3 $18 (29. gxh3 Rab8 $16)) (24... Nxg2 {simplifies} 25. Kxg2 Qxc4 26. Qd2 Rfc8) 25. Qd5 {[%emt 0:01:56]} Qxd5 {[%emt 0:00:09]} (25... Qxf2 26. Rf1 Qxb2 27. Rab1 $16 (27. Kxh3 Qc3+ 28. g3 Ra5 $14)) 26. exd5 {[%emt 0:00:17]} Nf4 {[%emt 0:00:09]} (26... Nxf2 27. Kg3 $14) 27. Kg3 {[%emt 0:01:22]} Nh5+ {[%emt 0:00:13]} 28. Kf3 {[%emt 0:00:04]} Ra5 {[%emt 0:04:06]} 29. b4 {[%emt 0:01:20]} axb3 {[%emt 0:00:30]} 30. axb3 {[%emt 0:00:01]} Rfa8 {[%emt 0:02:32]} 31. Rxa5 {[%emt 0:01:18]} Rxa5 $17 {[%emt 0:00:05][%mdl 4096] Endgame KRB-KRN. Black is a pawn up.} 32. Re7 {[%emt 0:00:21]} (32. b4 $17 {was the only defense.} Ra4 (32... Ra3+ 33. Ke4 $15) 33. Rb1) 32... Rc5 $1 $19 {[%emt 0:00:38]} 33. g4 {[%emt 0:02:48]} Nf6 {[%emt 0:02:33][%cal Ob7b5]} 34. g5 {[%emt 0:00:18]} Nh7 {[%emt 0:00:59]} (34... Nxd5 35. Bxd5 Rxd5 36. Rxc7) 35. Kg4 {[%emt 0:00:46]} b5 {[%emt 0:02:32]} 36. Bf1 {[%emt 0:00:05]} Kf8 {[%emt 0:00:49]} 37. Re1 {[%emt 0:00:16]} Rxd5 {[%emt 0:00:53]} 38. f4 {[%emt 0:00:04]} b4 {[%emt 0:01:19]} 39. Rc1 {[%emt 0:01:42]} c5 {[%emt 0:01:08]} (39... f5+ $19 40. Kh4 Rc5) 40. Ra1 $1 $15 {[%emt 0:00:15]} Rd4 {[%emt 0:00:34]} ({Black should try} 40... Kg8 $1 $15 41. Ra7 Rd1) 41. Ra7 {[%emt 0:32:08]} (41. Bb5 $1 $11) 41... d5 {[%emt 0:38:04]} 42. Rb7 {[%emt 0:00:00] Black continues to play with concentration.} (42. Rd7 $1 $15) 42... Rd1 $1 $19 {[%emt 0:00:00] White must now prevent ...f5+.} 43. Be2 {[%emt 0:00:00]} Rg1+ {[%emt 0:00:00]} 44. Kh4 {[%emt 0:00:00] [#]} (44. Kf3 $142) 44... f6 $1 {[%emt 0:00:00][%cal Rf6g5]} 45. Bf3 {[%emt 0:00:00]} fxg5+ {[%emt 0:00:00]} 46. fxg5 {[%emt 0:00:00]} Nxg5 {[%emt 0:00:00]} 47. Bxd5 {[%emt 0:00:00] [#]} Rd1 $1 {[%emt 0:00:00]} ({Not} 47... Ke8 48. Rc7 $11) 48. Kxg5 {[%emt 0:00:03]} (48. Bc4 $142 Ne4 49. Rc7) 48... Rxd5+ {[%emt 0:00:00]} 49. Kxg6 $2 {[%emt 0:00:03] KR-KR. Black is a pawn up.} (49. Kf6 Rd6+ 50. Kg5) 49... Rd3 {[%emt 0:00:00]} 50. Rc7 {[%emt 0:03:13]} Rxb3 {[%emt 0:00:00]} 51. Rxc5 {[%emt 0:00:03] [#]} Ke7 $1 {[%emt 0:00:00] ( -> ...Rb1)} 52. Kf5 {[%emt 0:00:44]} Kd6 {[%emt 0:00:00]} 53. Rb5 {[%emt 0:00:17]} Kc6 {[%emt 0:00:00]} 54. Re5 {[%emt 0:01:30]} Rb1 {[%emt 0:00:00]} 55. Re2 {[%emt 0:01:06]} Kd5 {[%emt 0:00:00]} 56. Rd2+ {[%emt 0:00:10]} Kc4 {[%emt 0:00:00]} 57. Rc2+ {[%emt 0:00:12]} Kd3 {[%emt 0:00:00]} 58. Rc8 {[%emt 0:00:11]} Re1 {[%emt 0:00:00] Weighted Error Value: White=0.50/Black=0.09 (flawless)   Missed win:     	---       	Black=1      Mistake:       	White=7     	Black=1      Inaccurate:     	White=6     	Black=1      OK:         	White=16    	Black=15     Best:        	White=2     	Black=6      Strong:       	White=1     	Black=5} (58... b3 $142 59. Rd8+ Kc3 60. Rc8+ Kb2) 0-1

[Event "FIDE WSTC Open 50 2025"]
[Site "Prague"]
[Date "2025.02.20"]
[Round "4.5"]
[White "Hjartarson, Johann"]
[Black "Kazhgaleyev, Murtas"]
[Result "0-1"]
[Annotator "TA"]
[ECO "B38"]
[WhiteElo "2464"]
[BlackElo "2495"]
[PlyCount "106"]
[EventDate "2025.02.17"]
[EventType "team-tourn"]
[EventCountry "CZE"]
[SourceTitle "playchess.com"]
[Source "ChessBase"]
[SourceQuality "1"]
[TimeControl "40/5400+30:1800+30"]

{[%evp 11,106,35,60,47,43,18,7,10,12,11,11,6,25,16,45,14,61,27,23,0,0,0,-3,-4,0,0,0,-34,-47,-29,-34,-38,-42,-26,-29,-24,-17,-27,-29,-52,-57,-47,-43,-89,-48,-45,-48,-127,-126,-119,-119,-121,-125,-118,-100,-119,-82,-129,-129,-151,-151,-147,-121,-122,-125,-162,-162,-230,-218,-227,-189,-1649,-1530,-996,-989,-1715,-1715,-1201,-1602,-1360,-1185,-1185,-1185,-1180,-851,-176,-212,-2352,-1402,-2266,-1718,-29966,-29968,-29980,-29981,-29985,-29984]} 1. e4 {[%emt 0:00:07]} c5 {[%emt 0:00:04]} 2. Nf3 {[%emt 0:00:07]} Nc6 {[%emt 0:00:04]} 3. d4 {[%emt 0:00:37]} cxd4 {[%emt 0:00:04]} 4. Nxd4 {[%emt 0:00:07]} g6 {[%emt 0:00:02]} 5. c4 {[%emt 0:03:08]} Bg7 {[%emt 0:00:42]} 6. Be3 {[%emt 0:00:24]} Qb6 $1 {[%emt 0:00:06][%mdl 4] is now more promising than 6...Nf6.} 7. Nb3 {[%emt 0:03:03] B38: Sicilian: Maroczy Bind with 5...Bg7 and 7...0-0.} Qd8 {[%emt 0:00:48]} 8. Nc3 {[%emt 0:03:54]} Bxc3+ {[%emt 0:00:38]} 9. bxc3 {[%emt 0:00:09] The position is equal.} Nf6 {[%emt 0:00:03]} 10. f3 {[%emt 0:00:32]} d6 {[%emt 0:01:30]} 11. Bh6 {[%emt 0:09:42]} Be6 {[%emt 0:05:04]} 12. Rb1 $146 {[%emt 0:18:05]} (12. Nd4 Qa5 13. Qd2 Ne5 14. Nxe6 fxe6 15. Rb1 Qc7 16. c5 dxc5 17. Qf4 Rd8 18. Bb5+ {1-0 Pultinevicius,P (2599)-Galchenko,M (2438) Kuressaare Saaremaa Rapid op 2024 (9)}) 12... Rc8 {[%emt 0:09:22]} 13. Nd4 {[%emt 0:05:47]} Qa5 {[%emt 0:06:33]} (13... Na5 $11) 14. Nxe6 {[%emt 0:02:44]} (14. Rxb7 $2 Qxc3+ (14... Qxa2 15. Bg7 $16) 15. Qd2 Qxd4 $19) 14... fxe6 {[%emt 0:00:21]} 15. Rxb7 {[%emt 0:01:01]} Qxc3+ {[%emt 0:02:03]} 16. Qd2 {[%emt 0:01:00]} Qa1+ {[%emt 0:02:37]} (16... Qxd2+ 17. Kxd2 Kf7 18. Be2 Rhd8) 17. Kf2 {[%emt 0:01:49][%cal Oc4c5]} (17. Qc1 {simplifies} Qxc1+ 18. Bxc1 Kf7 19. c5) 17... Kf7 {[%emt 0:05:26]} 18. Rg1 {[%emt 0:14:04][%cal Of1d3]} Rb8 {[%emt 0:06:08] Dancing on a razor blade.} 19. Rb5 {[%emt 0:03:04] Hoping for Bd3.} Qd4+ {[%emt 0:03:45]} 20. Be3 {[%emt 0:04:44]} Qxd2+ {[%emt 0:00:05]} 21. Bxd2 {[%emt 0:00:05]} a6 {[%emt 0:02:33]} 22. Rxb8 {[%emt 0:00:29]} Rxb8 {[%emt 0:00:09]} 23. Bc3 {[%emt 0:00:06] Prevents Rb2+} Nb4 $36 {[%emt 0:02:04][%mdl 2048] Black is more active.} 24. c5 {[%emt 0:04:36]} Nxa2 {[%emt 0:04:54]} 25. Ba1 {[%emt 0:00:37]} Nb4 {[%emt 0:04:52]} 26. cxd6 {[%emt 0:03:16]} exd6 {[%emt 0:00:26]} 27. e5 {[%emt 0:00:18]} (27. Be2 $15) 27... Nc2 {[%emt 0:09:02]} 28. Bxa6 {[%emt 0:03:36]} Ra8 {[%emt 0:02:24]} 29. exf6 {[%emt 0:04:14] Black converts the advantage convincingly.} (29. Rc1 $1 $15) 29... Rxa6 $15 {[%emt 0:00:23][%mdl 4096] Endgame KRB-KRN} 30. Bc3 {[%emt 0:01:11]} Ra3 {[%emt 0:01:57]} 31. Bd2 {[%emt 0:00:49]} Kxf6 {[%emt 0:02:01]} 32. Rb1 {[%emt 0:00:09]} Nd4 {[%emt 0:01:48]} 33. Rb7 {[%emt 0:02:43]} Ra2 {[%emt 0:03:22]} 34. Ke3 {[%emt 0:02:11]} ({Better is} 34. Ke1) 34... h5 $17 {[%emt 0:01:12]} 35. f4 {[%emt 0:05:52][%cal Od2c3] [#]} e5 $1 {[%emt 0:01:09]} 36. fxe5+ {[%emt 0:00:23]} dxe5 {[%emt 0:00:10]} 37. Rb6+ {[%emt 0:00:31]} Kf5 {[%emt 0:00:24]} 38. h3 {[%emt 0:00:46][%cal Og2g4]} h4 {[%emt 0:03:39]} 39. Rd6 {[%emt 0:02:08]} (39. Rb8 $142) 39... Ne6 {[%emt 0:05:00]} 40. Rd7 {[%emt 0:01:22]} Nf4 {[%emt 0:01:59]} 41. Kf3 {[%emt 0:01:40]} (41. Rd8) 41... e4+ $19 {[%emt 0:03:32]} 42. Kf2 {[%emt 0:00:12] [#]} Nxg2 $1 {[%emt 0:02:09]} 43. Kxg2 {[%emt 0:00:12] KRB-KR} (43. Kg1 e3) 43... e3 {[%emt 0:00:08]} 44. Kf3 {[%emt 0:00:13]} exd2 {[%emt 0:00:13] KR-KR. Black is two pawns up.} ({Not} 44... Rxd2 45. Rf7+ Ke6 46. Kxe3 $11) 45. Rd5+ {[%emt 0:01:27]} Ke6 {[%emt 0:00:24]} 46. Rd8 {[%emt 0:00:08]} Kf6 {[%emt 0:06:17]} 47. Rd6+ {[%emt 0:01:56]} Ke5 {[%emt 0:00:26]} 48. Rd8 {[%emt 0:00:06]} g5 {[%emt 0:00:25]} 49. Re8+ $2 {[%emt 0:05:23]} (49. Rd7) 49... Kd4 {[%emt 0:03:40]} 50. Rd8+ {[%emt 0:00:36]} Kc4 {[%emt 0:01:33] and ...Kb4 should not be overlooked} 51. Ke2 {[%emt 0:02:16] [#]} g4 $1 {[%emt 0:02:00] Black mates.} 52. Rh8 {[%emt 0:09:29]} (52. Rc8+ Kd5) 52... g3 {[%emt 0:02:34]} 53. Rxh4+ {[%emt 0:00:28]} Kc3 {[%emt 0:00:05] Weighted Error Value: White=0.59/Black=0.16 (very precise)   Mistake:       	White=5     	Black=1      Inaccurate:     	White=5     	Black=4      OK:         	White=11    	Black=17     Best:        	White=3     	Black=3      Strong:       	---       	Black=1} 0-1

[Event "FIDE WSTC Open 50 2025"]
[Site "Prague"]
[Date "2025.02.20"]
[Round "4.6"]
[White "Kotsur, Pavel"]
[Black "Petursson, Margeir"]
[Result "1-0"]
[Annotator "TA"]
[ECO "E11"]
[WhiteElo "2478"]
[BlackElo "2403"]
[PlyCount "133"]
[EventDate "2025.02.17"]
[EventType "team-tourn"]
[EventCountry "CZE"]
[SourceTitle "playchess.com"]
[Source "ChessBase"]
[SourceQuality "1"]
[TimeControl "40/5400+30:1800+30"]

{[%evp 14,133,22,20,29,22,27,32,36,16,25,13,17,9,23,16,31,30,18,0,6,0,15,-16,-18,-16,-19,-16,0,0,17,8,0,0,25,0,0,0,0,0,10,9,6,0,4,0,12,0,7,-18,0,-9,0,0,5,-6,12,3,11,9,12,0,10,0,0,0,16,2,16,0,0,0,0,0,0,0,4,0,62,57,135,135,135,135,135,135,135,95,157,158,187,191,177,177,187,187,241,186,220,186,186,186,186,186,355,326,545,543,526,517,524,516,592,566,666,548,760,750,727,713,664,586]} 1. d4 {[%emt 0:00:09]} Nf6 {[%emt 0:00:09]} 2. c4 {[%emt 0:00:15]} e6 {[%emt 0:00:12]} 3. Nf3 {[%emt 0:00:40]} Bb4+ {[%emt 0:00:05]} 4. Bd2 {[%emt 0:00:09]} c5 {[%emt 0:01:42]} 5. Bxb4 {[%emt 0:01:58]} cxb4 {[%emt 0:00:02]} 6. e3 {[%emt 0:00:05]} O-O {[%emt 0:01:11]} 7. Bd3 $1 {[%emt 0:07:33] The main line 7.Bd3 scores better than 7.Be2.} d6 {[%emt 0:02:27]} 8. Nbd2 {[%emt 0:02:07]} a5 {[%emt 0:16:16] E11: Bogo-Indian.} 9. O-O {[%emt 0:02:57]} b6 {[%emt 0:05:34]} 10. Re1 {[%emt 0:01:45]} Nc6 {[%emt 0:07:49] White is slightly better.} 11. d5 $146 {[%emt 0:11:32]} (11. Qc2 Ba6 12. d5 exd5 13. cxd5 Bxd3 14. Qxd3 Ne7 15. e4 Ng6 16. Rac1 Rc8 17. Rc6 {1-0 Soza de la Carrera,J (2252)-Parada Garces,J (1766) Antofagasta Zicosur op 2nd 2016 (1)}) 11... Ne5 {[%emt 0:09:32]} 12. Nxe5 {[%emt 0:03:15]} dxe5 {[%emt 0:02:27]} 13. e4 {[%emt 0:00:18]} Nd7 {[%emt 0:02:21]} 14. a3 {[%emt 0:01:57] axb4 is in the air} Nc5 {[%emt 0:01:44]} 15. Bc2 {[%emt 0:00:15]} Bd7 {[%emt 0:04:17]} 16. Re3 {[%emt 0:09:43]} Qe7 {[%emt 0:05:03]} 17. Qe2 {[%emt 0:05:05]} Qd6 {[%emt 0:01:43]} 18. a4 {[%emt 0:01:30]} (18. Qh5 {feels hotter.} g6 19. Qh6 f6 20. f4) 18... Rae8 {[%emt 0:02:33]} 19. Nf3 {[%emt 0:03:30]} f6 {[%emt 0:02:29]} 20. b3 {[%emt 0:01:01]} Rd8 {[%emt 0:01:15]} 21. Ne1 {[%emt 0:10:54]} Bc8 {[%emt 0:03:04]} 22. Rd1 {[%emt 0:02:48]} Qc7 {[%emt 0:02:02]} 23. g3 {[%emt 0:02:25]} Rfe8 {[%emt 0:03:21]} 24. Ng2 {[%emt 0:05:21]} Re7 {[%emt 0:02:16]} 25. Nh4 {[%emt 0:05:00]} Nb7 {[%emt 0:03:29]} 26. Red3 {[%emt 0:01:46]} Rd6 {[%emt 0:00:55]} 27. R3d2 {[%emt 0:00:43]} Nc5 {[%emt 0:03:03]} 28. Qe1 {[%emt 0:01:44]} Re8 {[%emt 0:00:51]} 29. Qe2 {[%emt 0:01:14]} Re7 {[%emt 0:02:43]} 30. Re1 {[%emt 0:02:01]} Rd8 {[%emt 0:01:08]} 31. Rdd1 {[%emt 0:00:36]} Ree8 {[%emt 0:00:59]} 32. Qe3 {[%emt 0:03:24]} Nb7 {[%emt 0:00:49]} 33. Rd2 {[%emt 0:01:22]} Qc5 {[%emt 0:01:29]} 34. Qe2 {[%emt 0:00:58]} Qc7 {[%emt 0:01:16]} 35. Ng2 {[%emt 0:01:45]} exd5 {[%emt 0:02:22]} 36. exd5 {[%emt 0:00:18]} Nd6 {[%emt 0:00:37]} 37. Nh4 {[%emt 0:01:02]} f5 {[%emt 0:04:07]} 38. f3 {[%emt 0:03:12]} Qc5+ {[%emt 0:01:24]} 39. Qf2 {[%emt 0:01:48]} Qxf2+ {[%emt 0:00:55]} 40. Kxf2 {[%emt 0:00:03]} Kf7 {[%emt 0:01:09]} 41. g4 {[%emt 0:35:38]} g6 {[%emt 0:32:27]} 42. Rde2 {[%emt 0:00:00]} Kf6 {[%emt 0:00:00]} 43. h3 {[%emt 0:00:00][%cal Bh2h3,Bh3h4][%mdl 32]} Bd7 {[%emt 0:00:00]} 44. Ng2 {[%emt 0:00:00][%cal Oe2e5,Bh4g2,Bg2e3,Be3f1,Bf1d2,Bd2e4][%mdl 32]} Nf7 {[%emt 0:00:00]} 45. Ne3 {[%emt 0:00:00]} f4 {[%emt 0:00:00]} (45... h5 $11) 46. Nf1 {[%emt 0:00:00]} Nd6 {[%emt 0:00:00]} (46... h5 $14) 47. h4 $16 {[%emt 0:00:00]} h6 {[%emt 0:00:00]} 48. Nd2 {[%emt 0:00:00]} g5 {[%emt 0:00:00]} 49. Rh1 {[%emt 0:00:00] [#]} Rh8 {[%emt 0:00:00]} 50. Ke1 {[%emt 0:00:00]} Rdg8 {[%emt 0:00:00]} ({Better is} 50... gxh4 51. Rxh4 Be8) 51. Reh2 {[%emt 0:00:00]} gxh4 {[%emt 0:00:00]} 52. Rxh4 {[%emt 0:00:00]} Nf7 {[%emt 0:00:00]} 53. Ne4+ {[%emt 0:00:00]} Ke7 {[%emt 0:00:00]} 54. Kf2 {[%emt 0:00:00]} Rd8 {[%emt 0:00:00]} (54... Rg6 55. Rh5 Rf8 56. d6+ Nxd6) 55. Rh5 {[%emt 0:00:00]} Bc8 {[%emt 0:01:49]} 56. Nd2 {[%emt 0:00:00]} Rhg8 {[%emt 0:01:52]} 57. Bf5 {[%emt 0:00:17]} Bxf5 {[%emt 0:00:33]} 58. Rxf5 {[%emt 0:00:32] White attacks} Rg5 $2 {[%emt 0:00:41]} (58... Rg6 59. Ne4 Rc8) 59. Rxh6 {[%emt 0:01:20]} Nxh6 {[%emt 0:02:49]} (59... Rxf5 {was worth a try.} 60. Re6+ (60. Rxb6 $2 {perishes.} Rf6 $19) 60... Kd7) 60. Rxg5 $18 {[%emt 0:00:06][%mdl 4096] Endgame KRN-KRN. White is a pawn up. White is clearly winning.} Nf7 {[%emt 0:00:18]} 61. Rh5 {[%emt 0:00:15][%cal Bg5h5,Bh5f5,Bf5f6,Bf6e6][%mdl 32]} Kf6 {[%emt 0:00:41]} 62. Ne4+ {[%emt 0:01:18]} Kg6 {[%emt 0:00:29]} 63. Rf5 {[%emt 0:01:03] [#]} Rh8 {[%emt 0:00:19]} 64. Kg2 {[%emt 0:00:04] And now Rf6+ would win.} Rb8 {[%emt 0:00:05]} 65. Rf6+ {[%emt 0:00:14]} Kg7 {[%emt 0:00:02]} 66. Re6 {[%emt 0:00:07]} Rb7 {[%emt 0:00:42]} 67. Nd6 {[%emt 0:01:10] Weighted Error Value: White=0.08 (flawless) /Black=0.20 (precise)   Mistake:       	---       	Black=6      Inaccurate:     	White=1     	Black=1      OK:         	White=20    	Black=13     Best:        	White=1     	Black=2} 1-0

[Event "FIDE WSTC Open 50 2025"]
[Site "Prague"]
[Date "2025.02.20"]
[Round "4.7"]
[White "Olafsson, Helgi"]
[Black "Temirbayev, Serikbay"]
[Result "0-1"]
[Annotator "TA"]
[ECO "E97"]
[WhiteElo "2466"]
[BlackElo "2372"]
[PlyCount "74"]
[EventDate "2025.02.17"]
[EventType "team-tourn"]
[EventCountry "CZE"]
[SourceTitle "playchess.com"]
[Source "ChessBase"]
[SourceQuality "1"]
[TimeControl "40/5400+30:1800+30"]

{[%evp 20,74,85,58,67,60,67,51,60,28,30,5,135,132,145,67,74,69,86,82,79,72,77,77,63,45,70,-10,-29,-28,-8,-2,-11,-59,-70,-75,-24,-77,-77,-77,0,0,0,-13,0,-121,-128,-116,-94,-335,-61,-68,-35,-29989,-455,-29990,-29991]} 1. d4 {[%emt 0:00:07]} Nf6 {[%emt 0:00:17]} 2. c4 {[%emt 0:00:06]} g6 {[%emt 0:00:20]} 3. Nc3 {[%emt 0:00:07]} Bg7 {[%emt 0:00:42]} 4. e4 {[%emt 0:00:17]} d6 {[%emt 0:00:44]} 5. Be2 {[%emt 0:00:10]} O-O {[%emt 0:00:48]} 6. Nf3 {[%emt 0:00:11]} e5 {[%emt 0:03:25]} 7. O-O {[%emt 0:01:43]} Nc6 {[%emt 0:00:57]} 8. d5 {[%emt 0:00:13]} Ne7 {[%emt 0:00:10]} 9. b4 {[%emt 0:00:28]} a5 {[%emt 0:11:09]} 10. bxa5 {[%emt 0:00:29]} c5 {[%emt 0:00:29]} 11. a4 {[%emt 0:06:42]} Rxa5 {[%emt 0:03:21] E97: King's Indian: Classical Main Line (6...e5 7 0-0 Nc6): 8 Be3 and 8 d5 Ne7, not 9 Ne1.} 12. Bd2 {[%emt 0:00:29]} Ra6 {[%emt 0:00:20]} 13. Rb1 {[%emt 0:00:58] was the old line (13.Ra3).} Ne8 {[%emt 0:13:20] White is slightly better.} 14. g3 {[%emt 0:18:54]} h6 $146 {[%emt 0:07:15]} ({Predecessor:} 14... f5 15. Ng5 Nc7 16. Nb5 fxe4 17. Nxe4 Nf5 18. Bd3 Nxb5 19. axb5 Ra3 20. Bc3 Nd4 21. Bxd4 exd4 {1-0 Yilmaz,M (2614)-Pichot,A (2556) Dubai op 19th 2017 (5)}) 15. Nh4 {[%emt 0:06:53]} f5 {[%emt 0:16:15] Inhibits Bg4.} (15... g5 $1 $11) 16. exf5 $16 {[%emt 0:03:00]} gxf5 {[%emt 0:01:25]} 17. f4 {[%emt 0:02:29]} (17. Kh1 $16) 17... e4 $14 {[%emt 0:00:29]} 18. Kh1 {[%emt 0:08:59]} Nf6 {[%emt 0:02:33]} 19. Nb5 {[%emt 0:02:07]} Kh7 {[%emt 0:00:58]} 20. h3 {[%emt 0:03:35]} Ng6 {[%emt 0:07:23]} 21. Ng2 {[%emt 0:01:09]} Ne8 {[%emt 0:01:14][%csl Ob5] Strong Square White (b5)} 22. g4 {[%emt 0:09:01]} Nh4 {[%emt 0:02:44]} 23. Nxh4 {[%emt 0:00:21]} (23. Rg1 $14) 23... Qxh4 $11 {[%emt 0:00:07]} 24. Kg2 {[%emt 0:00:03]} Rg8 {[%emt 0:03:44]} 25. Be1 {[%emt 0:05:44]} Qe7 {[%emt 0:00:21]} 26. Bg3 {[%emt 0:04:49]} (26. Kh2 $11 {is more appropriate.}) 26... Bf6 $15 {[%emt 0:00:57]} 27. Kh1 {[%emt 0:01:34]} Kh8 {[%emt 0:04:35]} (27... Nc7 $17) 28. Bh2 {[%emt 0:00:30]} (28. Rg1 $11) 28... Bh4 {[%emt 0:01:03]} 29. Rg1 {[%emt 0:02:03]} Bf2 {[%emt 0:02:05]} ({Black should try} 29... e3 $17 {Black wants to play ...Bf2.} 30. Bg3 fxg4) 30. Rg2 $11 {[%emt 0:00:49]} e3 {[%emt 0:00:02]} 31. Nc3 {[%emt 0:08:18]} Qh4 {[%emt 0:01:00]} 32. gxf5 {[%emt 0:02:28]} (32. Rb3 $1 $11 {keeps the balance.}) 32... Rxg2 $17 {[%emt 0:03:47]} (32... Bxf5 33. Rxg8+ Kxg8 34. Rxb7 $14) 33. Kxg2 {[%emt 0:00:56]} b6 {[%emt 0:03:26][%cal Oe8f6] Dancing on a razor blade. Black is more active.} (33... Bxf5 $6 34. Bg4 Bxb1 35. Qxb1 $11) 34. Bg4 $2 {[%emt 0:06:33] [#]} (34. Bd3 $17 {was forced.}) 34... h5 $1 {[%emt 0:01:07][%mdl 512]} 35. Bxh5 $15 {[%emt 0:00:11]} Bxf5 {[%emt 0:00:04][%csl Of2] Strong Square Black (f2)} 36. Bxe8 {[%emt 0:03:46][%mdl 8192]} (36. Bg4 $15 Bxb1 37. Qxb1) 36... Qxh3+ {[%emt 0:00:08]} 37. Kh1 {[%emt 0:00:03]} Bg4 {[%emt 0:00:12] Weighted Error Value: White=0.48/Black=0.26 (precise)   Loses game:     	White=2     	---        Missed win:     	---       	Black=1      Mistake:       	White=5     	Black=3      Inaccurate:     	White=2     	---        OK:         	White=7     	Black=7      Best:        	White=4     	Black=3} 0-1